[Event "31st Roquetas de Mar Open 2020"]
[Site "Roquetas de Mar"]
[Date "2020.01.06"]
[Round "7.14"]
[White "Martin Carmona, Gaston Manuel"]
[Black "Villanueva, Mario"]
[Result "1/2-1/2"]
[ECO "E12"]
[WhiteElo "2211"]
[BlackElo "2488"]
[Annotator "RC"]
[PlyCount "86"]
[EventDate "2020.01.02"]
[EventType "swiss"]
[EventCountry "ESP"]
[SourceTitle "playchess.com"]
[Source "ChessBase"]
[SourceQuality "1"]
[TimeControl "5400+30"]

1. d4 {[%emt 0:05:53]} e6 {[%emt 0:00:00]} 2. Nf3 {[%emt 0:00:47]} Nf6 {[%emt 0:00:02]} 3. c4 {[%emt 0:00:06]} b6 {[%emt 0:00:18]} 4. a3 {[%emt 0:00:13]} Bb7 {[%emt 0:00:34]} 5. Nc3 {[%emt 0:00:17]} Ne4 {[%emt 0:01:14]} 6. Qc2 {[%emt 0:04:01]} Nxc3 {[%emt 0:01:00]} 7. Qxc3 {[%emt 0:01:39]} Be7 {[%emt 0:00:53]} 8. g3 {[%emt 0:04:04]} O-O {[%emt 0:02:10]} 9. Bg2 {[%emt 0:00:32]} c5 {[%emt 0:00:09]} 10. O-O {[%emt 0:04:16]} cxd4 {[%emt 0:03:50]} 11. Nxd4 {[%emt 0:01:15]} Qc8 {[%emt 0:00:37]} 12. Be3 {[%emt 0:03:41]} d6 {[%emt 0:03:15]} 13. Rfd1 {[%emt 0:01:40]} a6 {[%emt 0:00:38]} 14. Nf3 {[%emt 0:03:46]} Nd7 {[%emt 0:01:51]} 15. Bd4 {[%emt 0:11:37]} e5 {[%emt 0:06:14]} 16. Be3 {[%emt 0:00:53]} h6 {[%emt 0:00:13]} 17. b4 {[%emt 0:04:30]} Rd8 {[%emt 0:12:52]} 18. Rac1 {[%emt 0:03:23]} Qc7 {[%emt 0:00:10]} 19. Qb3 {[%emt 0:03:53]} Rac8 {[%emt 0:04:09]} 20. Bh3 {[%emt 0:07:40]} Ba8 {[%emt 0:00:24]} 21. Qb1 {[%emt 0:08:33]} Qb7 {[%emt 0:05:06]} 22. Bf5 {[%emt 0:05:23]} Rc7 {[%emt 0:03:09]} 23. Rc2 {[%emt 0:02:53]} Nf6 {[%emt 0:06:09]} 24. Qa2 {[%emt 0:01:56]} g6 {[%emt 0:05:00]} 25. Bh3 {[%emt 0:00:22]} Kg7 {[%emt 0:00:21]} 26. Bg2 {[%emt 0:00:32]} Qb8 {[%emt 0:01:08]} 27. Qb2 {[%emt 0:00:31]} Be4 {[%emt 0:03:18]} 28. Rc3 {[%emt 0:01:14]} b5 {[%emt 0:05:49]} 29. Nd2 {[%emt 0:06:04]} Bxg2 {[%emt 0:00:51]} 30. Kxg2 {[%emt 0:00:01]} d5 {[%emt 0:02:49]} 31. cxd5 {[%emt 0:02:51]} Rxc3 {[%emt 0:00:53]} 32. Qxc3 {[%emt 0:00:02]} Nxd5 {[%emt 0:00:06]} 33. Qb3 {[%emt 0:02:08]} Nxe3+ {[%emt 0:02:30]} 34. fxe3 {[%emt 0:00:31]} Qd6 {[%emt 0:00:31]} 35. Rf1 {[%emt 0:00:20]} Bf6 {[%emt 0:05:08]} 36. Ne4 {[%emt 0:02:21]} Qc6 {[%emt 0:00:08]} 37. Qb1 {[%emt 0:00:01]} Be7 {[%emt 0:02:41]} 38. Rc1 {[%emt 0:00:01]} Qd5 {[%emt 0:01:38]} 39. Kf2 {[%emt 0:00:19]} Rd7 {[%emt 0:02:02]} 40. Nc5 {[%emt 0:00:38]} Rd6 {[%emt 0:01:01]} 41. Ne4 {[%emt 0:01:29]} Rd7 {[%emt 0:01:05]} 42. Nc5 {[%emt 0:00:18]} Rd6 {[%emt 0:02:41]} 43. Ne4 {[%emt 0:00:24]} Rd7 1/2-1/2

[Event "31st Roquetas de Mar Open 2020"]
[Site "Roquetas de Mar"]
[Date "2020.01.06"]
[Round "7.15"]
[White "Shahil Dey"]
[Black "Raja Harshit"]
[Result "0-1"]
[ECO "B96"]
[WhiteElo "2148"]
[BlackElo "2482"]
[Annotator "RC"]
[PlyCount "58"]
[EventDate "2020.01.02"]
[EventType "swiss"]
[EventCountry "ESP"]
[SourceTitle "playchess.com"]
[Source "ChessBase"]
[SourceQuality "1"]
[TimeControl "5400+30"]

1. e4 c5 2. Nf3 d6 3. d4 cxd4 4. Nxd4 Nf6 5. Nc3 a6 6. Bg5 e6 7. f4 Qc7 8. Qe2 Nbd7 9. O-O-O b5 10. a3 Be7 11. g4 Rb8 12. Bg2 h6 13. Bxf6 Bxf6 14. h4 b4 15. axb4 Rxb4 16. e5 dxe5 17. Nc6 Rxf4 18. Ne4 O-O 19. g5 Bb7 20. Nb4 Bxe4 21. Bxe4 Nc5 22. gxf6 Nxe4 23. Nd3 Qa5 24. c3 Rc8 25. Qg2 Qa1+ 26. Kc2 Qa4+ 27. Kb1 Rxf6 28. Rhg1 Rg6 29. Qh2 Qb3 0-1

[Event "31st Roquetas de Mar Open 2020"]
[Site "Roquetas de Mar"]
[Date "2020.01.06"]
[Round "7.16"]
[White "Gascon Del Nogal, Jose Rafael"]
[Black "Low, Zhen Yu Cyrus"]
[Result "0-1"]
[ECO "B51"]
[WhiteElo "2466"]
[BlackElo "2415"]
[Annotator "RC"]
[PlyCount "116"]
[EventDate "2020.01.02"]
[EventType "swiss"]
[EventCountry "ESP"]
[SourceTitle "playchess.com"]
[Source "ChessBase"]
[SourceQuality "1"]
[TimeControl "5400+30"]

1. e4 {[%emt 0:06:41]} c5 {[%emt 0:00:00]} 2. Nf3 {[%emt 0:00:07]} d6 {[%emt 0:00:00]} 3. Bb5+ {[%emt 0:00:21]} Nd7 {[%emt 0:00:00]} 4. O-O {[%emt 0:00:26]} a6 {[%emt 0:00:17]} 5. Bd3 {[%emt 0:00:12]} Ngf6 {[%emt 0:00:23]} 6. c3 {[%emt 0:00:06]} b5 {[%emt 0:07:10]} 7. a4 {[%emt 0:00:11]} Bb7 {[%emt 0:00:35]} 8. axb5 {[%emt 0:01:15]} axb5 {[%emt 0:00:12]} 9. Rxa8 {[%emt 0:00:30]} Qxa8 {[%emt 0:00:09]} 10. Bxb5 {[%emt 0:01:16]} Bxe4 {[%emt 0:00:47]} 11. Na3 {[%emt 0:01:05]} e6 {[%emt 0:02:33]} 12. d4 {[%emt 0:00:46]} cxd4 {[%emt 0:06:49]} 13. Bg5 {[%emt 0:29:54]} Be7 {[%emt 0:14:15]} 14. Bxf6 {[%emt 0:01:21]} gxf6 {[%emt 0:08:15]} 15. Nc4 {[%emt 0:00:15]} Bxf3 {[%emt 0:11:11]} 16. Qxf3 {[%emt 0:01:08]} Qxf3 {[%emt 0:00:23]} 17. gxf3 {[%emt 0:00:03]} Rg8+ {[%emt 0:00:32]} 18. Kh1 {[%emt 0:00:11]} Rg5 {[%emt 0:00:30]} 19. Bxd7+ {[%emt 0:01:15]} Kxd7 {[%emt 0:00:07]} 20. cxd4 {[%emt 0:01:38]} d5 {[%emt 0:05:43]} 21. Ne3 {[%emt 0:00:55]} Bd8 {[%emt 0:00:22]} 22. f4 {[%emt 0:01:53]} Rh5 {[%emt 0:02:06]} 23. Kg2 {[%emt 0:14:55]} Bb6 {[%emt 0:07:28]} 24. Rd1 {[%emt 0:00:13]} f5 {[%emt 0:00:19]} 25. Rd3 {[%emt 0:02:08]} Rh6 {[%emt 0:00:36]} 26. Nc2 {[%emt 0:00:40]} Bc7 {[%emt 0:00:33]} 27. Ra3 {[%emt 0:01:13]} Rg6+ {[%emt 0:04:00]} 28. Kf1 {[%emt 0:00:05]} Rh6 {[%emt 0:02:07]} 29. Kg2 {[%emt 0:01:37]} Rh4 {[%emt 0:00:52]} 30. h3 {[%emt 0:10:21]} Rxf4 {[%emt 0:00:30]} 31. Ra6 {[%emt 0:01:16]} Re4 {[%emt 0:01:37]} 32. Kf1 {[%emt 0:03:07]} Kc8 {[%emt 0:01:33]} 33. Ra8+ {[%emt 0:00:35]} Bb8 {[%emt 0:00:06]} 34. Ra3 {[%emt 0:02:45]} Rh4 {[%emt 0:00:42]} 35. Rc3+ {[%emt 0:00:21]} Bc7 {[%emt 0:01:06]} 36. Ke2 {[%emt 0:01:11]} Kb7 {[%emt 0:00:39]} 37. Rf3 {[%emt 0:05:09]} Bb6 {[%emt 0:00:56]} 38. Kd3 {[%emt 0:00:16]} Kc6 {[%emt 0:00:09]} 39. Kc3 {[%emt 0:02:24]} Kd6 {[%emt 0:00:13]} 40. Kd3 {[%emt 0:01:11]} f6 {[%emt 0:04:16]} 41. b4 {[%emt 0:03:07]} e5 {[%emt 0:03:39]} 42. dxe5+ {[%emt 0:00:50]} fxe5 {[%emt 0:00:05]} 43. Rxf5 {[%emt 0:00:44]} Ke6 {[%emt 0:01:03]} 44. Rf8 {[%emt 0:00:11]} Rxh3+ {[%emt 0:00:07]} 45. Ke2 {[%emt 0:00:06]} d4 {[%emt 0:01:55]} 46. f3 {[%emt 0:00:03]} Kd5 {[%emt 0:00:20]} 47. Rf6 {[%emt 0:01:08]} Bd8 {[%emt 0:00:41]} 48. Rf8 {[%emt 0:00:47]} Rh2+ {[%emt 0:00:30]} 49. Kf1 {[%emt 0:01:31]} Rxc2 {[%emt 0:02:52]} 50. Rxd8+ {[%emt 0:00:02]} Kc4 {[%emt 0:00:12]} 51. Rc8+ {[%emt 0:00:19]} Kb3 {[%emt 0:00:26]} 52. Rd8 {[%emt 0:00:24]} Kxb4 {[%emt 0:08:26]} 53. f4 {[%emt 0:00:18]} Kc4 {[%emt 0:01:24]} 54. fxe5 {[%emt 0:00:36]} d3 {[%emt 0:00:01]} 55. e6 {[%emt 0:02:08]} Re2 {[%emt 0:00:10]} 56. Rd6 {[%emt 0:01:28]} h5 {[%emt 0:00:57]} 57. Ra6 {[%emt 0:00:11]} h4 {[%emt 0:00:53]} 58. Ra4+ {[%emt 0:02:00]} Kb3 {[%emt 0:00:11]} 0-1

[Event "31st Roquetas de Mar Open 2020"]
[Site "Roquetas de Mar"]
[Date "2020.01.06"]
[Round "7.17"]
[White "Kiselev, Pavel"]
[Black "Real De Azua, Ernesto"]
[Result "0-1"]
[ECO "A05"]
[WhiteElo "2303"]
[BlackElo "2456"]
[Annotator "RC"]
[PlyCount "32"]
[EventDate "2020.01.02"]
[EventType "swiss"]
[EventCountry "ESP"]
[SourceTitle "playchess.com"]
[Source "ChessBase"]
[SourceQuality "1"]
[TimeControl "5400+30"]

1. Nf3 {[%emt 0:00:00]} Nf6 {[%emt 0:01:47]} 2. c4 {[%emt 0:00:00]} g6 {[%emt 0:07:31]} 3. Nc3 {[%emt 0:00:00]} d5 {[%emt 0:00:07]} 4. Qa4+ {[%emt 0:00:00]} Bd7 {[%emt 0:05:33]} 5. Qb3 {[%emt 0:03:05]} dxc4 {[%emt 0:00:08]} 6. Qxc4 {[%emt 0:00:48]} Bg7 {[%emt 0:00:34]} 7. Ne5 {[%emt 0:03:11]} Be6 {[%emt 0:05:14]} 8. Qb5+ {[%emt 0:00:48]} Nbd7 {[%emt 0:00:11]} 9. Nxd7 {[%emt 0:02:00]} Qxd7 {[%emt 0:02:29]} 10. Qxb7 {[%emt 0:01:31]} O-O {[%emt 0:00:10]} 11. g3 {[%emt 0:01:45]} Nd5 {[%emt 0:09:48]} 12. Qb5 {[%emt 0:18:42]} Qxb5 {[%emt 0:05:06]} 13. Nxb5 {[%emt 0:00:02]} Nb4 {[%emt 0:00:06]} 14. Na3 {[%emt 0:01:30]} Nxa2 {[%emt 0:01:40]} 15. Bh3 {[%emt 0:02:06]} Nxc1 {[%emt 0:02:51]} 16. Bxe6 {[%emt 0:00:02]} fxe6 {[%emt 0:04:47]} 0-1

[Event "31st Roquetas de Mar Open 2020"]
[Site "Roquetas de Mar"]
[Date "2020.01.06"]
[Round "8.2"]
[White "Bernadskiy, Vitaliy"]
[Black "Harutyunian, Tigran K."]
[Result "1-0"]
[ECO "C26"]
[WhiteElo "2588"]
[BlackElo "2533"]
[Annotator "RC"]
[PlyCount "103"]
[EventDate "2020.01.02"]
[EventType "swiss"]
[EventCountry "ESP"]
[SourceTitle "playchess.com"]
[Source "ChessBase"]
[SourceQuality "1"]
[TimeControl "5400+30"]

1. e4 {[%emt 0:00:00]} e5 {[%emt 0:01:36]} 2. Nc3 {[%emt 0:00:00]} Nf6 {[%emt 0:01:04]} 3. g3 {[%emt 0:00:00]} d5 {[%emt 0:01:51]} 4. exd5 {[%emt 0:00:00]} Nxd5 {[%emt 0:00:07]} 5. Bg2 {[%emt 0:00:00]} Nxc3 {[%emt 0:00:43]} 6. bxc3 {[%emt 0:00:00]} Bc5 {[%emt 0:00:51]} 7. Nf3 {[%emt 0:01:14]} Nc6 {[%emt 0:03:48]} 8. O-O {[%emt 0:03:06]} O-O {[%emt 0:00:08]} 9. Re1 {[%emt 0:02:33]} Bb6 {[%emt 0:19:49]} 10. a4 {[%emt 0:01:11]} Re8 {[%emt 0:01:19]} 11. d3 {[%emt 0:02:33]} Bg4 {[%emt 0:02:08]} 12. h3 {[%emt 0:01:32]} Bh5 {[%emt 0:00:06]} 13. g4 {[%emt 0:03:51]} Bg6 {[%emt 0:00:29]} 14. Ng5 {[%emt 0:04:52]} h6 {[%emt 0:06:27]} 15. Ne4 {[%emt 0:00:18]} f5 {[%emt 0:00:11]} 16. gxf5 {[%emt 0:01:47]} Bxf5 {[%emt 0:03:08]} 17. Qh5 {[%emt 0:00:39]} Rf8 {[%emt 0:01:01]} 18. Be3 {[%emt 0:02:17]} Qe8 {[%emt 0:05:05]} 19. Qxe8 {[%emt 0:12:29]} Raxe8 {[%emt 0:00:16]} 20. Nc5 {[%emt 0:06:40]} Bxc5 {[%emt 0:05:43]} 21. Bxc5 {[%emt 0:00:06]} Rf6 {[%emt 0:00:07]} 22. f4 {[%emt 0:11:10]} b6 {[%emt 0:10:37]} 23. Bd4 {[%emt 0:06:05]} Rfe6 {[%emt 0:08:39]} 24. fxe5 {[%emt 0:00:07]} Rd8 {[%emt 0:00:27]} 25. Bf2 {[%emt 0:06:03]} Nxe5 {[%emt 0:02:44]} 26. Bg3 {[%emt 0:00:05]} Nf7 {[%emt 0:01:11]} 27. Rxe6 {[%emt 0:13:43]} Bxe6 {[%emt 0:00:06]} 28. Re1 {[%emt 0:00:31]} Bd7 {[%emt 0:02:05]} 29. Bxc7 {[%emt 0:01:46]} Re8 {[%emt 0:07:28]} 30. Rxe8+ {[%emt 0:03:29]} Bxe8 {[%emt 0:00:08]} 31. a5 {[%emt 0:00:27]} bxa5 {[%emt 0:00:05]} 32. Bxa5 {[%emt 0:02:21]} Ba4 {[%emt 0:00:04]} 33. c4 {[%emt 0:00:08]} Bxc2 {[%emt 0:00:40]} 34. d4 {[%emt 0:00:03]} Kf8 {[%emt 0:00:31]} 35. c5 {[%emt 0:00:13]} Ke7 {[%emt 0:01:29]} 36. d5 {[%emt 0:00:58]} g5 {[%emt 0:05:53]} 37. Bc3 {[%emt 0:01:13]} h5 {[%emt 0:00:41]} 38. Kf2 {[%emt 0:00:29]} g4 {[%emt 0:01:05]} 39. h4 {[%emt 0:00:46]} Nh6 {[%emt 0:00:18]} 40. c6 {[%emt 0:01:34]} Bf5 {[%emt 0:05:41]} 41. Bb4+ {[%emt 0:00:16]} Ke8 {[%emt 0:00:31]} 42. d6 {[%emt 0:00:58]} Nf7 {[%emt 0:00:04]} 43. Ke3 {[%emt 0:01:23]} a5 {[%emt 0:02:41]} 44. Ba3 {[%emt 0:00:05]} a4 {[%emt 0:00:47]} 45. Kf4 {[%emt 0:00:11]} Be6 {[%emt 0:00:36]} 46. Be4 {[%emt 0:01:35]} Kd8 {[%emt 0:00:04]} 47. Bb4 {[%emt 0:00:17]} Kc8 {[%emt 0:00:29]} 48. Bd3 {[%emt 0:00:33]} Kb8 {[%emt 0:00:37]} 49. Bg6 {[%emt 0:00:15]} a3 {[%emt 0:01:13]} 50. Bxf7 {[%emt 0:01:20]} a2 {[%emt 0:00:08]} 51. c7+ {[%emt 0:00:17]} Kb7 {[%emt 0:00:13]} 52. Bxe6 {[%emt 0:00:05]} 1-0

[Event "31st Roquetas de Mar Open 2020"]
[Site "Roquetas de Mar"]
[Date "2020.01.06"]
[Round "8.6"]
[White "Vazquez Igarza, Renier"]
[Black "Raja Harshit"]
[Result "1-0"]
[ECO "E10"]
[WhiteElo "2552"]
[BlackElo "2482"]
[Annotator "RC"]
[PlyCount "55"]
[EventDate "2020.01.02"]
[EventType "swiss"]
[EventCountry "ESP"]
[SourceTitle "playchess.com"]
[Source "ChessBase"]
[SourceQuality "1"]
[TimeControl "5400+30"]

1. d4 {[%emt 0:06:19]} Nf6 {[%emt 0:00:07]} 2. c4 {[%emt 0:00:07]} e6 {[%emt 0:00:04]} 3. Nf3 {[%emt 0:00:09]} d5 {[%emt 0:00:12]} 4. cxd5 {[%emt 0:04:34]} exd5 {[%emt 0:00:33]} 5. Bg5 {[%emt 0:00:08]} h6 {[%emt 0:05:42]} 6. Bh4 {[%emt 0:01:54]} g5 {[%emt 0:05:11]} 7. Bg3 {[%emt 0:00:14]} Ne4 {[%emt 0:00:17]} 8. Nfd2 {[%emt 0:01:59]} Bg7 {[%emt 0:13:43]} 9. Nxe4 {[%emt 0:10:41]} dxe4 {[%emt 0:00:02]} 10. Nc3 {[%emt 0:00:01]} O-O {[%emt 0:10:24]} 11. h4 {[%emt 0:00:55]} Bf5 {[%emt 0:09:20]} 12. hxg5 {[%emt 0:00:57]} hxg5 {[%emt 0:00:51]} 13. e3 {[%emt 0:00:40]} Nd7 {[%emt 0:03:51]} 14. Bc4 {[%emt 0:15:10]} Bg6 {[%emt 0:07:49]} 15. Qg4 {[%emt 0:09:59]} c5 {[%emt 0:03:55]} 16. Bf4 {[%emt 0:05:50]} cxd4 {[%emt 0:07:19]} 17. exd4 {[%emt 0:01:22]} Nb6 {[%emt 0:20:41]} 18. Bxg5 {[%emt 0:07:16]} Qxd4 {[%emt 0:01:42]} 19. Bb3 {[%emt 0:01:23]} Qc5 {[%emt 0:05:16]} 20. Be7 {[%emt 0:08:50]} Qxe7 {[%emt 0:02:15]} 21. Qxg6 {[%emt 0:00:09]} Rfe8 {[%emt 0:00:17]} 22. Bxf7+ {[%emt 0:00:42]} Qxf7 {[%emt 0:00:36]} 23. Rh8+ {[%emt 0:00:07]} Kxh8 {[%emt 0:00:11]} 24. Qxf7 {[%emt 0:00:02]} Rf8 {[%emt 0:00:49]} 25. Qh5+ {[%emt 0:01:56]} Kg8 {[%emt 0:00:05]} 26. Ke2 {[%emt 0:03:19]} Rf6 {[%emt 0:00:57]} 27. Rd1 {[%emt 0:02:17]} Re6 {[%emt 0:00:40]} 28. Qg5 {[%emt 0:01:08]} 1-0

[Event "31st Roquetas de Mar Open 2020"]
[Site "Roquetas de Mar"]
[Date "2020.01.06"]
[Round "8.8"]
[White "Low, Zhen Yu Cyrus"]
[Black "Krysa, Leandro"]
[Result "1/2-1/2"]
[ECO "C54"]
[WhiteElo "2415"]
[BlackElo "2522"]
[Annotator "RC"]
[PlyCount "72"]
[EventDate "2020.01.02"]
[EventType "swiss"]
[EventCountry "ESP"]
[SourceTitle "playchess.com"]
[Source "ChessBase"]
[SourceQuality "1"]
[TimeControl "5400+30"]

1. e4 {[%emt 0:00:00]} e5 {[%emt 0:00:00]} 2. Nf3 {[%emt 0:00:00]} Nc6 {[%emt 0:00:00]} 3. Bc4 {[%emt 0:00:00]} Bc5 {[%emt 0:00:00]} 4. c3 {[%emt 0:00:09]} Nf6 {[%emt 0:00:00]} 5. d4 {[%emt 0:00:04]} exd4 {[%emt 0:00:10]} 6. e5 {[%emt 0:00:06]} d5 {[%emt 0:00:22]} 7. Bb5 {[%emt 0:00:07]} Ne4 {[%emt 0:00:18]} 8. cxd4 {[%emt 0:00:07]} Bb6 {[%emt 0:00:47]} 9. Nc3 {[%emt 0:00:13]} O-O {[%emt 0:00:39]} 10. Be3 {[%emt 0:00:07]} Bd7 {[%emt 0:03:23]} 11. Qb3 {[%emt 0:00:21]} Nxc3 {[%emt 0:05:08]} 12. bxc3 {[%emt 0:00:19]} Na5 {[%emt 0:01:06]} 13. Qa4 {[%emt 0:02:31]} Bxb5 {[%emt 0:01:01]} 14. Qxb5 {[%emt 0:01:41]} Nc4 {[%emt 0:00:03]} 15. O-O {[%emt 0:04:52]} c6 {[%emt 0:02:52]} 16. Qb1 {[%emt 0:01:46]} Nxe3 {[%emt 0:03:21]} 17. fxe3 {[%emt 0:00:14]} f6 {[%emt 0:00:04]} 18. Qd3 {[%emt 0:07:10]} Bc7 {[%emt 0:21:58]} 19. exf6 {[%emt 0:16:16]} Qxf6 {[%emt 0:01:39]} 20. Rab1 {[%emt 0:00:19]} b5 {[%emt 0:09:01]} 21. Rbe1 {[%emt 0:13:17]} Rae8 {[%emt 0:01:47]} 22. e4 {[%emt 0:00:15]} Qg6 {[%emt 0:02:16]} 23. Ne5 {[%emt 0:06:43]} Rxf1+ {[%emt 0:08:12]} 24. Qxf1 {[%emt 0:00:08]} Bxe5 {[%emt 0:00:07]} 25. dxe5 {[%emt 0:00:07]} Rxe5 {[%emt 0:04:50]} 26. exd5 {[%emt 0:01:04]} Rxd5 {[%emt 0:12:39]} 27. c4 {[%emt 0:07:29]} bxc4 {[%emt 0:06:51]} 28. Qxc4 {[%emt 0:00:14]} h6 {[%emt 0:00:06]} 29. h3 {[%emt 0:02:28]} Kh7 {[%emt 0:00:23]} 30. Rc1 {[%emt 0:00:49]} Rd6 {[%emt 0:07:41]} 31. Qc5 {[%emt 0:00:52]} a6 {[%emt 0:01:23]} 32. Qc2 {[%emt 0:00:54]} Qxc2 {[%emt 0:03:17]} 33. Rxc2 {[%emt 0:00:02]} Kg6 {[%emt 0:00:35]} 34. Rc5 {[%emt 0:00:05]} Kf6 {[%emt 0:00:24]} 35. Ra5 {[%emt 0:00:08]} Ke6 {[%emt 0:00:33]} 36. Kh2 {[%emt 0:00:49]} g5 {[%emt 0:02:37]} 1/2-1/2

[Event "31st Roquetas de Mar Open 2020"]
[Site "Roquetas de Mar"]
[Date "2020.01.06"]
[Round "8.9"]
[White "Shariyazdanov, Andrey"]
[Black "Wieczorek, Oskar"]
[Result "1/2-1/2"]
[ECO "E98"]
[WhiteElo "2519"]
[BlackElo "2490"]
[Annotator "ChessBase"]
[PlyCount "139"]
[EventDate "2020.01.02"]
[EventType "swiss"]
[EventCountry "ESP"]
[SourceTitle "playchess.com"]
[Source "ChessBase"]
[SourceQuality "1"]
[TimeControl "5400+30"]

1. c4 {[%emt 0:01:28]} Nf6 {[%emt 0:00:12]} 2. Nc3 {[%emt 0:00:13]} g6 {[%emt 0:00:07]} 3. e4 {[%emt 0:00:10]} d6 {[%emt 0:00:02]} 4. d4 {[%emt 0:00:11]} Bg7 {[%emt 0:00:02]} 5. Be2 {[%emt 0:00:09]} O-O {[%emt 0:00:04]} 6. Nf3 {[%emt 0:00:09]} e5 {[%emt 0:00:02]} 7. O-O {[%emt 0:00:13]} Nc6 {[%emt 0:00:03]} 8. d5 {[%emt 0:00:07]} Ne7 {[%emt 0:00:03]} 9. Ne1 {[%emt 0:00:15]} Nd7 {[%emt 0:00:11]} 10. Nd3 {[%emt 0:00:11]} f5 {[%emt 0:00:10]} 11. Bd2 {[%emt 0:00:09]} Nf6 {[%emt 0:00:10]} 12. f3 {[%emt 0:00:08]} f4 {[%emt 0:00:08]} 13. c5 {[%emt 0:00:23]} g5 {[%emt 0:00:17]} 14. Rc1 {[%emt 0:00:37]} Ng6 {[%emt 0:00:11]} 15. cxd6 {[%emt 0:00:10]} cxd6 {[%emt 0:00:07]} 16. Nf2 {[%emt 0:00:08]} Rf7 {[%emt 0:06:07]} 17. Qb3 {[%emt 0:04:51]} h5 {[%emt 0:09:49]} 18. h3 {[%emt 0:00:10]} Bf8 {[%emt 0:02:45]} 19. Rc2 {[%emt 0:05:20]} a6 {[%emt 0:46:20]} 20. Rfc1 {[%emt 0:01:50]} Nh4 {[%emt 0:03:23]} 21. Be1 {[%emt 0:02:52]} Bd7 {[%emt 0:06:38]} 22. Ncd1 {[%emt 0:04:15]} Ne8 {[%emt 0:04:58]} 23. Rc3 {[%emt 0:08:18]} Rg7 {[%emt 0:01:15]} 24. Kf1 {[%emt 0:03:47]} b5 {[%emt 0:02:36]} 25. Rc6 {[%emt 0:06:28]} Kh8 {[%emt 0:03:35]} 26. Nd3 {[%emt 0:06:13]} Bxc6 {[%emt 0:09:29]} 27. dxc6 {[%emt 0:01:03]} Ng6 {[%emt 0:00:05]} 28. Nc3 {[%emt 0:03:53]} Ne7 {[%emt 0:02:10]} 29. Nd5 {[%emt 0:01:07]} Nxd5 {[%emt 0:01:44]} 30. exd5 {[%emt 0:00:53]} Nf6 {[%emt 0:00:20]} 31. Nf2 {[%emt 0:00:48]} Qb6 {[%emt 0:00:29]} 32. Bd3 {[%emt 0:13:39]} Be7 {[%emt 0:01:29]} 33. Ne4 {[%emt 0:01:47]} Nxe4 {[%emt 0:00:23]} 34. Bxe4 {[%emt 0:00:07]} Bd8 {[%emt 0:00:27]} 35. Qc2 {[%emt 0:03:15]} Qa7 {[%emt 0:00:26]} 36. Bg6 {[%emt 0:02:59]} Qd4 {[%emt 0:01:01]} 37. Rd1 {[%emt 0:01:32]} Qc4+ {[%emt 0:00:18]} 38. Qxc4 {[%emt 0:00:15]} bxc4 {[%emt 0:00:04]} 39. Bxh5 {[%emt 0:00:05]} Rb8 {[%emt 0:00:27]} 40. Bc3 {[%emt 0:00:22]} Kg8 {[%emt 0:00:42]} 41. Bg4 {[%emt 0:00:18]} Kf8 {[%emt 0:00:25]} 42. Ke2 {[%emt 0:03:22]} Bb6 {[%emt 0:00:56]} 43. Kd2 {[%emt 0:01:03]} Ke7 {[%emt 0:00:31]} 44. Kc2 {[%emt 0:00:23]} Bc7 {[%emt 0:00:26]} 45. a4 {[%emt 0:03:07]} Bb6 {[%emt 0:00:50]} 46. Re1 {[%emt 0:00:55]} Kd8 {[%emt 0:00:19]} 47. Re4 {[%emt 0:00:19]} a5 {[%emt 0:00:29]} 48. Rxc4 {[%emt 0:00:24]} Ra7 {[%emt 0:00:19]} 49. Bf5 {[%emt 0:03:48]} Kc7 {[%emt 0:00:23]} 50. Bd3 {[%emt 0:00:28]} Re8 {[%emt 0:00:08]} 51. Re4 {[%emt 0:00:13]} Bc5 {[%emt 0:00:14]} 52. Bb5 {[%emt 0:00:22]} Raa8 {[%emt 0:00:14]} 53. Kd3 {[%emt 0:00:24]} Bb6 {[%emt 0:00:29]} 54. Re1 {[%emt 0:00:56]} Bd4 {[%emt 0:00:40]} 55. b4 {[%emt 0:09:15]} Bxc3 {[%emt 0:01:45]} 56. Kxc3 {[%emt 0:00:05]} axb4+ {[%emt 0:00:14]} 57. Kxb4 {[%emt 0:00:09]} Reb8 {[%emt 0:00:25]} 58. a5 {[%emt 0:01:13]} Ra7 {[%emt 0:00:36]} 59. Ra1 {[%emt 0:00:59]} Re8 {[%emt 0:00:31]} 60. Bd3 {[%emt 0:01:35]} Rb8+ {[%emt 0:00:11]} 61. Kc3 {[%emt 0:00:32]} Rba8 {[%emt 0:00:58]} 62. a6 {[%emt 0:02:07]} Rb8 {[%emt 0:00:08]} 63. Rg1 {[%emt 0:00:43]} Rh8 {[%emt 0:00:23]} 64. Rb1 {[%emt 0:00:50]} Rb8 {[%emt 0:00:24]} 65. Rxb8 {[%emt 0:01:16]} Kxb8 {[%emt 0:00:05]} 66. Kb4 {[%emt 0:00:02]} Kc7 {[%emt 0:00:50]} 67. Ka5 {[%emt 0:00:16]} Ra8 {[%emt 0:00:09]} 68. Be4 {[%emt 0:03:51]} Ra7 {[%emt 0:00:25]} 69. Bd3 {[%emt 0:01:04]} Ra8 {[%emt 0:00:06]} 70. Be4 1/2-1/2

[Event "31st Roquetas de Mar Open 2020"]
[Site "Roquetas de Mar"]
[Date "2020.01.06"]
[Round "8.10"]
[White "Rajarishi Karthi"]
[Black "Klekowski, Maciej"]
[Result "1-0"]
[ECO "E20"]
[WhiteElo "2103"]
[BlackElo "2515"]
[Annotator "RC"]
[PlyCount "77"]
[EventDate "2020.01.02"]
[EventType "swiss"]
[EventCountry "ESP"]
[SourceTitle "playchess.com"]
[Source "ChessBase"]
[SourceQuality "1"]
[TimeControl "5400+30"]

1. d4 {[%emt 0:06:48]} Nf6 {[%emt 0:00:00]} 2. c4 {[%emt 0:00:39]} e6 {[%emt 0:00:00]} 3. Nc3 {[%emt 0:00:11]} Bb4 {[%emt 0:00:11]} 4. f3 {[%emt 0:00:22]} c5 {[%emt 0:00:59]} 5. a3 {[%emt 0:01:12]} Bxc3+ {[%emt 0:02:14]} 6. bxc3 {[%emt 0:00:11]} O-O {[%emt 0:03:48]} 7. e4 {[%emt 0:00:29]} d6 {[%emt 0:01:01]} 8. Bd3 {[%emt 0:00:48]} Nc6 {[%emt 0:04:44]} 9. Ne2 {[%emt 0:01:53]} e5 {[%emt 0:05:46]} 10. O-O {[%emt 0:01:57]} Re8 {[%emt 0:10:18]} 11. d5 {[%emt 0:01:03]} Na5 {[%emt 0:00:56]} 12. Ng3 {[%emt 0:00:11]} h6 {[%emt 0:13:41]} 13. f4 {[%emt 0:02:01]} exf4 {[%emt 0:00:15]} 14. Bxf4 {[%emt 0:00:15]} Ng4 {[%emt 0:10:44]} 15. Ra2 {[%emt 0:02:01]} Ne5 {[%emt 0:02:02]} 16. Raf2 {[%emt 0:03:09]} f6 {[%emt 0:02:52]} 17. h3 {[%emt 0:06:00]} Qe7 {[%emt 0:05:03]} 18. Nh5 {[%emt 0:01:55]} Rf8 {[%emt 0:00:11]} 19. Bxh6 {[%emt 0:04:46]} gxh6 {[%emt 0:06:36]} 20. Nxf6+ {[%emt 0:00:10]} Kh8 {[%emt 0:01:10]} 21. Qh5 {[%emt 0:00:12]} Qg7 {[%emt 0:00:10]} 22. Ne8 {[%emt 0:00:26]} Rxf2 {[%emt 0:00:10]} 23. Rxf2 {[%emt 0:02:05]} Qg5 {[%emt 0:02:19]} 24. Rf8+ {[%emt 0:01:12]} Kh7 {[%emt 0:00:04]} 25. Nf6+ {[%emt 0:01:57]} Kg7 {[%emt 0:00:05]} 26. Rg8+ {[%emt 0:00:11]} Kxf6 {[%emt 0:00:04]} 27. Rxg5 {[%emt 0:00:04]} hxg5 {[%emt 0:00:03]} 28. Qh6+ {[%emt 0:00:06]} Kf7 {[%emt 0:00:41]} 29. Be2 {[%emt 0:00:16]} Naxc4 {[%emt 0:00:12]} 30. Qxg5 {[%emt 0:02:20]} Bd7 {[%emt 0:01:26]} 31. Bh5+ {[%emt 0:00:11]} Kf8 {[%emt 0:00:05]} 32. h4 {[%emt 0:00:08]} Nf7 {[%emt 0:09:42]} 33. Qf6 {[%emt 0:00:29]} Nce5 {[%emt 0:00:04]} 34. Bxf7 {[%emt 0:00:17]} Nxf7 {[%emt 0:00:04]} 35. h5 {[%emt 0:00:07]} Re8 {[%emt 0:00:14]} 36. h6 {[%emt 0:00:52]} Re5 {[%emt 0:00:03]} 37. Qg7+ {[%emt 0:02:15]} Ke8 {[%emt 0:00:09]} 38. h7 {[%emt 0:00:08]} Rh5 {[%emt 0:00:07]} 39. g4 {[%emt 0:00:28]} 1-0